[Event "1st Sivas Buruciye Open 2019"]
[Site "Sivas"]
[Date "2019.08.22"]
[Round "6"]
[White "Caputcuoglu, Zeki Berke"]
[Black "Sevdimaliyev, Urfan"]
[Result "1/2-1/2"]
[ECO "D60"]
[WhiteElo "2004"]
[BlackElo "2348"]
[Annotator "NA"]
[PlyCount "40"]
[EventDate "2019.08.19"]
[EventType "swiss"]
[EventCountry "TUR"]
[SourceTitle "playchess.com"]
[Source "ChessBase"]
[SourceQuality "1"]
[TimeControl "5400+30"]

1. Nf3 {[%emt 0:02:30]} d5 {[%emt 0:00:30]} 2. d4 {[%emt 0:00:00]} Nf6 {[%emt 0:00:30]} 3. c4 {[%emt 0:00:00]} e6 {[%emt 0:00:30]} 4. Nc3 {[%emt 0:00:30]} Be7 {[%emt 0:01:30]} 5. Bg5 {[%emt 0:01:30]} Nbd7 {[%emt 0:01:30]} 6. e3 {[%emt 0:00:30]} h6 {[%emt 0:01:30]} 7. Bh4 {[%emt 0:00:30]} O-O {[%emt 0:00:30]} 8. Bd3 {[%emt 0:01:30]} c5 {[%emt 0:01:30]} 9. cxd5 {[%emt 0:01:30]} cxd4 {[%emt 0:02:30]} 10. Nxd4 {[%emt 0:02:30]} Nxd5 {[%emt 0:00:30]} 11. Bxe7 {[%emt 0:00:30]} Nxe7 {[%emt 0:00:30]} 12. O-O {[%emt 0:01:30]} Nf6 {[%emt 0:05:30]} 13. Bc2 {[%emt 0:06:30]} Qb6 {[%emt 0:08:30]} 14. Qe2 {[%emt 0:22:30]} e5 {[%emt 0:07:30]} 15. Nf3 {[%emt 0:00:30]} Nc6 {[%emt 0:12:30]} 16. Ne4 {[%emt 0:02:30]} Nxe4 {[%emt 0:17:30]} 17. Bxe4 {[%emt 0:00:00]} Re8 {[%emt 0:03:30]} 18. Rac1 {[%emt 0:02:00]} Bg4 {[%emt 0:03:30]} 19. h3 {[%emt 0:01:30]} Bxf3 {[%emt 0:10:11]} 20. Qxf3 {[%emt 0:00:30]} Rac8 {[%emt 0:01:40]} 1/2-1/2

[Event "1st Sivas Buruciye Open 2019"]
[Site "Sivas"]
[Date "2019.08.22"]
[Round "6"]
[White "Yontar, Sabrican Onay"]
[Black "Altundal, Arda"]
[Result "0-1"]
[ECO "B50"]
[WhiteElo "1881"]
[BlackElo "1659"]
[Annotator "NA"]
[PlyCount "74"]
[EventDate "2019.08.19"]
[EventType "swiss"]
[EventCountry "TUR"]
[SourceTitle "playchess.com"]
[Source "ChessBase"]
[SourceQuality "1"]
[TimeControl "5400+30"]

1. e4 {[%emt 0:02:30]} c5 {[%emt 0:01:30]} 2. Nf3 {[%emt 0:00:00]} d6 {[%emt 0:00:00]} 3. b3 {[%emt 0:00:00]} Nc6 {[%emt 0:01:00]} 4. Bb2 {[%emt 0:00:30]} e5 {[%emt 0:00:30]} 5. Bc4 {[%emt 0:04:30]} Be7 {[%emt 0:01:30]} 6. Nc3 {[%emt 0:03:30]} Nf6 {[%emt 0:00:30]} 7. Bd5 {[%emt 0:02:30]} Nxd5 {[%emt 0:04:30]} 8. Nxd5 {[%emt 0:10:30]} f5 {[%emt 0:01:30]} 9. d3 {[%emt 0:02:30]} O-O {[%emt 0:01:30]} 10. Nd2 {[%emt 0:04:30]} Be6 {[%emt 0:03:30]} 11. f4 {[%emt 0:12:30]} Bxd5 {[%emt 0:14:30]} 12. exd5 {[%emt 0:00:30]} Nb4 {[%emt 0:00:00]} 13. fxe5 {[%emt 0:08:30]} dxe5 {[%emt 0:01:00]} 14. O-O {[%emt 0:01:30]} Qxd5 {[%emt 0:04:30]} 15. Nc4 {[%emt 0:04:30]} Nc6 {[%emt 0:08:30]} 16. Qe2 {[%emt 0:04:30]} Bd6 {[%emt 0:11:30]} 17. Rae1 {[%emt 0:00:30]} Rae8 {[%emt 0:00:30]} 18. g4 {[%emt 0:10:30]} f4 {[%emt 0:13:30]} 19. Qe4 {[%emt 0:02:30]} Qe6 {[%emt 0:03:30]} 20. h3 {[%emt 0:00:30]} Re7 {[%emt 0:00:30]} 21. Re2 {[%emt 0:01:30]} Nd4 {[%emt 0:06:30]} 22. Bxd4 {[%emt 0:00:30]} cxd4 {[%emt 0:00:00]} 23. Rfe1 {[%emt 0:01:30]} f3 {[%emt 0:00:00]} 24. Rf2 {[%emt 0:00:30]} Bb4 {[%emt 0:00:30]} 25. Nd2 {[%emt 0:02:06]} Bxd2 {[%emt 0:10:26]} 26. Rxd2 {[%emt 0:00:05]} Qh6 {[%emt 0:03:17]} 27. Rh2 {[%emt 0:01:48]} Qh4 {[%emt 0:00:53]} 28. Rf1 {[%emt 0:00:18]} Qg3+ {[%emt 0:02:54]} 29. Kh1 {[%emt 0:00:06]} Ref7 {[%emt 0:01:48]} 30. Rff2 {[%emt 0:04:55]} a6 {[%emt 0:02:47]} 31. Rf1 {[%emt 0:06:33]} f2 {[%emt 0:01:06]} 32. Qg2 {[%emt 0:00:14]} Qe3 {[%emt 0:00:27]} 33. Qd5 {[%emt 0:00:55]} Kh8 {[%emt 0:00:36]} 34. Qe4 {[%emt 0:03:52]} Rf3 {[%emt 0:00:46]} 35. Qxb7 {[%emt 0:01:26]} Rxh3 {[%emt 0:00:48]} 36. Qg2 {[%emt 0:01:15]} Rg3 {[%emt 0:00:12]} 37. Rxf2 {[%emt 0:00:48]} Qe1+ {[%emt 0:00:07]} 0-1

[Event "1st Sivas Buruciye Open 2019"]
[Site "Sivas"]
[Date "2019.08.22"]
[Round "6"]
[White "Sabahi, Ali Can"]
[Black "Yilmaz, Hasan"]
[Result "1-0"]
[ECO "C01"]
[WhiteElo "1825"]
[BlackElo "1580"]
[Annotator "NA"]
[PlyCount "49"]
[EventDate "2019.08.19"]
[EventType "swiss"]
[EventCountry "TUR"]
[SourceTitle "playchess.com"]
[Source "ChessBase"]
[SourceQuality "1"]
[TimeControl "5400+30"]

1. e4 {[%emt 0:00:30]} e6 {[%emt 0:00:30]} 2. d4 {[%emt 0:01:30]} b6 {[%emt 0:00:30]} 3. Be3 {[%emt 0:00:30]} Bb7 {[%emt 0:00:30]} 4. Nd2 {[%emt 0:00:00]} Nf6 {[%emt 0:02:30]} 5. Bd3 {[%emt 0:00:00]} d5 {[%emt 0:00:00]} 6. e5 {[%emt 0:00:30]} Nfd7 {[%emt 0:00:00]} 7. f4 {[%emt 0:00:30]} c5 {[%emt 0:00:30]} 8. c3 {[%emt 0:00:00]} Nc6 {[%emt 0:00:30]} 9. Ngf3 {[%emt 0:00:00]} a5 {[%emt 0:00:30]} 10. O-O {[%emt 0:10:30]} c4 {[%emt 0:10:30]} 11. Bc2 {[%emt 0:00:30]} b5 {[%emt 0:00:00]} 12. f5 {[%emt 0:00:00]} Be7 {[%emt 0:05:00]} 13. fxe6 {[%emt 0:01:00]} fxe6 {[%emt 0:00:00]} 14. Ng5 {[%emt 0:01:30]} Nf8 {[%emt 0:06:00]} 15. Nf7 {[%emt 0:00:30]} Qd7 {[%emt 0:05:30]} 16. Nxh8 {[%emt 0:00:30]} O-O-O {[%emt 0:00:30]} 17. Nf7 {[%emt 0:01:30]} Re8 {[%emt 0:00:30]} 18. Nd6+ {[%emt 0:00:00]} Bxd6 {[%emt 0:00:30]} 19. exd6 {[%emt 0:00:00]} Qxd6 {[%emt 0:00:30]} 20. Rf7 {[%emt 0:02:30]} e5 {[%emt 0:00:30]} 21. Qg4+ {[%emt 0:00:30]} Kb8 {[%emt 0:00:30]} 22. Qxg7 {[%emt 0:00:30]} Nd8 {[%emt 0:00:30]} 23. dxe5 {[%emt 0:01:30]} Rxe5 {[%emt 0:03:30]} 24. Bf4 {[%emt 0:02:30]} Nxf7 {[%emt 0:00:30]} 25. Qxf7 {[%emt 0:00:00]} 1-0

[Event "1st Sivas Buruciye Open 2019"]
[Site "Sivas"]
[Date "2019.08.22"]
[Round "6"]
[White "Shahlarov, Faig"]
[Black "Amanmuradow, Atajan"]
[Result "0-1"]
[ECO "D00"]
[WhiteElo "1798"]
[BlackElo "1794"]
[Annotator "NA"]
[PlyCount "64"]
[EventDate "2019.08.19"]
[EventType "swiss"]
[EventCountry "TUR"]
[SourceTitle "playchess.com"]
[Source "ChessBase"]
[SourceQuality "1"]
[TimeControl "5400+30"]

1. d4 {[%emt 0:02:30]} d5 {[%emt 0:00:30]} 2. Nc3 {[%emt 0:00:00]} Nf6 {[%emt 0:02:30]} 3. Bf4 {[%emt 0:00:00]} a6 {[%emt 0:00:30]} 4. e3 {[%emt 0:00:00]} Nbd7 {[%emt 0:00:30]} 5. g4 {[%emt 0:05:00]} h6 {[%emt 0:02:30]} 6. h4 {[%emt 0:00:30]} g6 {[%emt 0:07:30]} 7. f3 {[%emt 0:00:30]} c5 {[%emt 0:01:30]} 8. dxc5 {[%emt 0:11:30]} e5 {[%emt 0:11:30]} 9. Bg3 {[%emt 0:00:30]} Qa5 {[%emt 0:00:30]} 10. Qd2 {[%emt 0:03:30]} Bxc5 {[%emt 0:01:30]} 11. O-O-O {[%emt 0:03:30]} d4 {[%emt 0:15:30]} 12. exd4 {[%emt 0:00:30]} exd4 {[%emt 0:00:30]} 13. Nb1 {[%emt 0:11:30]} Qxa2 {[%emt 0:12:30]} 14. Ne2 {[%emt 0:06:30]} Nb6 {[%emt 0:02:30]} 15. Nxd4 {[%emt 0:00:30]} Na4 {[%emt 0:00:00]} 16. c3 {[%emt 0:06:30]} Bxd4 {[%emt 0:05:00]} 17. Qe2+ {[%emt 0:01:30]} Be6 {[%emt 0:00:30]} 18. Rxd4 {[%emt 0:00:00]} O-O {[%emt 0:01:30]} 19. Rxa4 {[%emt 0:19:00]} Qxa4 {[%emt 0:00:00]} 20. Be5 {[%emt 0:00:00]} Nd7 {[%emt 0:03:00]} 21. Bd4 {[%emt 0:00:00]} Rac8 {[%emt 0:00:30]} 22. Qe3 {[%emt 0:02:30]} Rfe8 {[%emt 0:01:30]} 23. Bd3 {[%emt 0:08:42]} Bb3 {[%emt 0:03:30]} 24. Qf4 {[%emt 0:00:30]} Re6 {[%emt 0:02:30]} 25. Be3 {[%emt 0:07:14]} Qa1 {[%emt 0:16:45]} 26. Be4 {[%emt 0:09:05]} Ne5 {[%emt 0:01:44]} 27. Qxh6 {[%emt 0:00:36]} Nc4 {[%emt 0:01:19]} 28. Rh2 {[%emt 0:00:05]} Rxe4 {[%emt 0:01:42]} 29. fxe4 {[%emt 0:00:06]} Ba2 {[%emt 0:00:00]} 30. Kd1 {[%emt 0:01:52]} Qxb1+ {[%emt 0:00:00]} 31. Bc1 {[%emt 0:00:45]} Rd8+ {[%emt 0:01:13]} 32. Ke1 {[%emt 0:00:03]} Bb3 {[%emt 0:01:49]} 0-1

[Event "1st Sivas Buruciye Open 2019"]
[Site "Sivas"]
[Date "2019.08.22"]
[Round "6"]
[White "Taze, Bulent"]
[Black "Citil, Feyzullah"]
[Result "1-0"]
[ECO "E99"]
[WhiteElo "1743"]
[BlackElo "1586"]
[Annotator "NA"]
[PlyCount "145"]
[EventDate "2019.08.19"]
[EventType "swiss"]
[EventCountry "TUR"]
[SourceTitle "playchess.com"]
[Source "ChessBase"]
[SourceQuality "1"]
[TimeControl "5400+30"]

1. d4 {[%emt 0:00:30]} Nf6 {[%emt 0:10:30]} 2. c4 {[%emt 0:00:00]} d6 {[%emt 0:01:30]} 3. Nc3 {[%emt 0:00:00]} g6 {[%emt 0:00:30]} 4. e4 {[%emt 0:00:30]} Bg7 {[%emt 0:00:00]} 5. Nf3 {[%emt 0:00:30]} O-O {[%emt 0:00:00]} 6. Be2 {[%emt 0:00:00]} e5 {[%emt 0:00:30]} 7. O-O {[%emt 0:00:00]} Nc6 {[%emt 0:01:30]} 8. d5 {[%emt 0:00:30]} Ne7 {[%emt 0:00:00]} 9. Ne1 {[%emt 0:00:30]} Nd7 {[%emt 0:10:00]} 10. Be3 {[%emt 0:00:30]} f5 {[%emt 0:00:30]} 11. f3 {[%emt 0:00:30]} f4 {[%emt 0:02:30]} 12. Bf2 {[%emt 0:00:00]} g5 {[%emt 0:00:00]} 13. Nd3 {[%emt 0:00:00]} Ng6 {[%emt 0:02:00]} 14. c5 {[%emt 0:00:30]} Nf6 {[%emt 0:00:30]} 15. cxd6 {[%emt 0:00:30]} cxd6 {[%emt 0:00:30]} 16. Rc1 {[%emt 0:00:30]} Rf7 {[%emt 0:01:30]} 17. Qb3 {[%emt 0:05:30]} h5 {[%emt 0:01:30]} 18. Nb5 {[%emt 0:02:30]} a6 {[%emt 0:00:30]} 19. Na7 Bd7 {[%emt 0:05:30]} 20. Qxb7 {[%emt 0:10:00]} Bb5 {[%emt 0:13:30]} 21. Qxa8 {[%emt 0:00:30]} Qxa8 {[%emt 0:01:30]} 22. Rc8+ {[%emt 0:00:30]} Qxc8 {[%emt 0:00:30]} 23. Nxc8 {[%emt 0:00:00]} Bf8 {[%emt 0:02:30]} 24. Na7 {[%emt 0:01:00]} Bxd3 {[%emt 0:01:30]} 25. Bxd3 {[%emt 0:00:30]} g4 {[%emt 0:00:30]} 26. Nc6 {[%emt 0:01:30]} h4 {[%emt 0:00:30]} 27. Bxa6 {[%emt 0:01:30]} g3 {[%emt 0:00:30]} 28. hxg3 {[%emt 0:00:30]} hxg3 {[%emt 0:00:30]} 29. Bb6 {[%emt 0:01:30]} Rh7 {[%emt 0:02:30]} 30. Bd8 {[%emt 0:01:30]} Kg7 {[%emt 0:01:30]} 31. Bxf6+ {[%emt 0:00:30]} Kxf6 {[%emt 0:00:00]} 32. Bc8 {[%emt 0:01:30]} Ne7 {[%emt 0:01:00]} 33. Nxe7 {[%emt 0:00:30]} Bxe7 {[%emt 0:00:30]} 34. Bh3 {[%emt 0:02:30]} Bd8 {[%emt 0:00:00]} 35. Rc1 {[%emt 0:00:30]} Rb7 {[%emt 0:00:00]} 36. Rc2 {[%emt 0:00:30]} Bb6+ {[%emt 0:01:30]} 37. Kf1 {[%emt 0:00:30]} Bd4 {[%emt 0:00:00]} 38. b3 {[%emt 0:00:00]} Bc5 {[%emt 0:00:00]} 39. Ke2 {[%emt 0:00:00]} Rh7 {[%emt 0:00:30]} 40. Kf1 {[%emt 0:07:30]} Rb7 {[%emt 0:02:30]} 41. Rc1 {[%emt 0:12:30]} Ra7 {[%emt 0:00:30]} 42. a4 {[%emt 0:00:30]} Rb7 {[%emt 0:00:30]} 43. Rb1 {[%emt 0:01:30]} Ke7 {[%emt 0:01:30]} 44. Ke2 {[%emt 0:08:30]} Kd8 {[%emt 0:00:30]} 45. Kd3 {[%emt 0:00:30]} Kc7 {[%emt 0:00:30]} 46. Kc4 {[%emt 0:02:30]} Rb4+ {[%emt 0:00:30]} 47. Kc3 {[%emt 0:00:30]} Kb6 {[%emt 0:00:30]} 48. Bd7 {[%emt 0:00:30]} Ka5 {[%emt 0:00:30]} 49. Bb5 {[%emt 0:00:30]} Rd4 {[%emt 0:00:30]} 50. Bd3 {[%emt 0:00:30]} Rb4 {[%emt 0:00:30]} 51. Rh1 {[%emt 0:00:30]} Bd4+ {[%emt 0:00:30]} 52. Kc2 {[%emt 0:00:30]} Rb7 {[%emt 0:00:30]} 53. Rh8 {[%emt 0:00:30]} Kb4 {[%emt 0:06:30]} 54. Bb5 {[%emt 0:02:30]} Ka3 {[%emt 0:08:30]} 55. Rh6 {[%emt 0:02:30]} Rb6 {[%emt 0:00:30]} 56. Rh7 {[%emt 0:01:30]} Kb4 {[%emt 0:00:30]} 57. Bc6 {[%emt 0:00:30]} Ka3 {[%emt 0:00:30]} 58. Bb5 {[%emt 0:02:30]} Kb4 {[%emt 0:03:30]} 59. Bc4 {[%emt 0:00:30]} Rb8 {[%emt 0:01:37]} 60. Kd3 {[%emt 0:03:30]} Bc5 {[%emt 0:02:17]} 61. Rh1 {[%emt 0:01:30]} Bd4 {[%emt 0:00:29]} 62. Kc2 {[%emt 0:02:30]} Bc5 {[%emt 0:00:10]} 63. Rh7 {[%emt 0:02:30]} Bd4 {[%emt 0:00:40]} 64. Ba6 {[%emt 0:01:30]} Bc5 {[%emt 0:00:58]} 65. Bb7 {[%emt 0:03:30]} Bd4 {[%emt 0:00:13]} 66. Kd3 {[%emt 0:00:30]} Bc5 {[%emt 0:00:25]} 67. a5 {[%emt 0:01:30]} Kxa5 {[%emt 0:00:58]} 68. Kc4 {[%emt 0:00:00]} Kb6 {[%emt 0:00:54]} 69. b4 {[%emt 0:00:00]} Be3 {[%emt 0:05:34]} 70. Bc6 {[%emt 0:00:30]} Rd8 {[%emt 0:01:59]} 71. Rb7+ {[%emt 0:01:30]} Ka6 {[%emt 0:00:30]} 72. Kb3 {[%emt 0:00:30]} Bc5 {[%emt 0:00:30]} 73. bxc5 {[%emt 0:00:30]} 1-0

[Event "1st Sivas Buruciye Open 2019"]
[Site "Sivas"]
[Date "2019.08.22"]
[Round "6"]
[White "Can, Ilhan"]
[Black "Gur, Tuba"]
[Result "1-0"]
[ECO "B42"]
[WhiteElo "1683"]
[BlackElo "1775"]
[Annotator "NA"]
[PlyCount "58"]
[EventDate "2019.08.19"]
[EventType "swiss"]
[EventCountry "TUR"]
[SourceTitle "playchess.com"]
[Source "ChessBase"]
[SourceQuality "1"]
[TimeControl "5400+30"]

1. e4 {[%emt 0:02:30]} c5 {[%emt 0:00:30]} 2. Nf3 {[%emt 0:00:30]} e6 {[%emt 0:00:30]} 3. d4 {[%emt 0:00:30]} cxd4 {[%emt 0:00:00]} 4. Nxd4 {[%emt 0:00:00]} a6 {[%emt 0:00:00]} 5. Bd3 {[%emt 0:00:00]} d6 {[%emt 0:00:00]} 6. O-O {[%emt 0:00:30]} Nf6 {[%emt 0:00:00]} 7. Nc3 {[%emt 0:05:30]} b5 {[%emt 0:00:30]} 8. a3 {[%emt 0:00:30]} Bb7 {[%emt 0:00:00]} 9. Kh1 {[%emt 0:00:30]} Qc7 {[%emt 0:01:00]} 10. f4 {[%emt 0:00:30]} Nbd7 {[%emt 0:01:30]} 11. Qf3 {[%emt 0:01:30]} h5 {[%emt 0:02:30]} 12. Bd2 {[%emt 0:01:30]} Be7 {[%emt 0:06:30]} 13. Rae1 {[%emt 0:00:30]} Nc5 {[%emt 0:01:30]} 14. b4 {[%emt 0:02:30]} Ncd7 {[%emt 0:02:30]} 15. Qe2 {[%emt 0:02:30]} Ng4 {[%emt 0:04:30]} 16. Nb3 {[%emt 0:05:30]} Bf6 {[%emt 0:09:30]} 17. Na5 {[%emt 0:02:30]} Rc8 {[%emt 0:06:30]} 18. e5 {[%emt 0:01:30]} dxe5 {[%emt 0:01:30]} 19. Nxb7 {[%emt 0:00:30]} Qxb7 {[%emt 0:00:30]} 20. Ne4 {[%emt 0:00:30]} Be7 {[%emt 0:04:30]} 21. f5 {[%emt 0:01:30]} Qc6 {[%emt 0:04:30]} 22. a4 {[%emt 0:04:30]} Qd5 {[%emt 0:09:30]} 23. axb5 {[%emt 0:01:30]} axb5 {[%emt 0:00:30]} 24. Nc3 {[%emt 0:01:30]} Qd6 {[%emt 0:04:30]} 25. Nxb5 {[%emt 0:01:30]} Qb8 {[%emt 0:00:00]} 26. fxe6 {[%emt 0:00:30]} Ndf6 {[%emt 0:01:00]} 27. c4 {[%emt 0:01:30]} e4 {[%emt 0:00:30]} 28. exf7+ {[%emt 0:01:30]} Kf8 {[%emt 0:00:30]} 29. Bf4 {[%emt 0:00:30]} exd3 {[%emt 0:00:00]} 1-0

[Event "1st Sivas Buruciye Open 2019"]
[Site "Sivas"]
[Date "2019.08.22"]
[Round "6"]
[White "Tofan, Ismail"]
[Black "Karahan, Anil"]
[Result "1-0"]
[ECO "A05"]
[WhiteElo "1669"]
[BlackElo "1721"]
[Annotator "NA"]
[PlyCount "67"]
[EventDate "2019.08.19"]
[EventType "swiss"]
[EventCountry "TUR"]
[SourceTitle "playchess.com"]
[Source "ChessBase"]
[SourceQuality "1"]
[TimeControl "5400+30"]

1. Nf3 {[%emt 0:04:30]} Nf6 {[%emt 0:00:30]} 2. b3 {[%emt 0:00:30]} g6 {[%emt 0:01:30]} 3. Bb2 {[%emt 0:00:30]} Bg7 {[%emt 0:01:30]} 4. e3 {[%emt 0:00:30]} c5 {[%emt 0:00:30]} 5. Be2 {[%emt 0:01:30]} Nc6 {[%emt 0:01:30]} 6. O-O {[%emt 0:00:30]} d5 {[%emt 0:00:30]} 7. Ne5 {[%emt 0:01:30]} Nxe5 {[%emt 0:00:30]} 8. Bxe5 {[%emt 0:00:30]} O-O {[%emt 0:00:30]} 9. d4 {[%emt 0:01:30]} Bf5 {[%emt 0:01:30]} 10. dxc5 {[%emt 0:03:30]} Rc8 {[%emt 0:00:30]} 11. b4 {[%emt 0:01:30]} b6 {[%emt 0:01:30]} 12. Ba6 {[%emt 0:00:30]} Rc6 {[%emt 0:01:30]} 13. Bb5 {[%emt 0:00:30]} Re6 {[%emt 0:01:30]} 14. Bd4 {[%emt 0:03:30]} bxc5 {[%emt 0:04:30]} 15. bxc5 {[%emt 0:01:30]} Qb8 {[%emt 0:39:30]} 16. Bd3 {[%emt 0:12:30]} Ng4 {[%emt 0:11:30]} 17. g3 {[%emt 0:01:30]} Bxd3 {[%emt 0:00:30]} 18. Qxd3 {[%emt 0:01:30]} Ne5 {[%emt 0:00:30]} 19. Qd1 {[%emt 0:01:30]} Rc6 {[%emt 0:05:30]} 20. Nd2 {[%emt 0:01:30]} Qc8 {[%emt 0:04:45]} 21. Nb3 {[%emt 0:04:30]} Rd8 {[%emt 0:02:59]} 22. f4 {[%emt 0:02:30]} Nc4 {[%emt 0:02:32]} 23. Bxg7 {[%emt 0:04:30]} Kxg7 {[%emt 0:00:11]} 24. Qd4+ {[%emt 0:00:30]} f6 {[%emt 0:00:00]} 25. e4 {[%emt 0:01:30]} Na3 {[%emt 0:06:41]} 26. Qb2 {[%emt 0:01:30]} Nb5 {[%emt 0:00:30]} 27. exd5 {[%emt 0:00:30]} Rxd5 {[%emt 0:00:30]} 28. c4 {[%emt 0:00:30]} Rcxc5 {[%emt 0:08:25]} 29. cxd5 {[%emt 0:00:30]} Rc2 {[%emt 0:00:30]} 30. Qb1 {[%emt 0:03:30]} Qc4 {[%emt 0:01:11]} 31. Rf2 {[%emt 0:01:30]} Rxf2 {[%emt 0:01:04]} 32. Kxf2 {[%emt 0:00:30]} Nc3 {[%emt 0:00:00]} 33. Qe1 {[%emt 0:02:30]} Ne4+ {[%emt 0:01:08]} 34. Kg1 {[%emt 0:02:30]} 1-0

[Event "1st Sivas Buruciye Open 2019"]
[Site "Sivas"]
[Date "2019.08.22"]
[Round "6"]
[White "Sibli, Murat Yigit"]
[Black "Tutmaz, Bugra Hamza"]
[Result "1-0"]
[ECO "B13"]
[WhiteElo "1583"]
[BlackElo "1276"]
[Annotator "NA"]
[PlyCount "65"]
[EventDate "2019.08.19"]
[EventType "swiss"]
[EventCountry "TUR"]
[SourceTitle "playchess.com"]
[Source "ChessBase"]
[SourceQuality "1"]
[TimeControl "5400+30"]

1. e4 {[%emt 0:00:30]} c6 {[%emt 0:00:30]} 2. d4 {[%emt 0:00:30]} d5 {[%emt 0:01:30]} 3. exd5 {[%emt 0:00:30]} cxd5 {[%emt 0:00:30]} 4. Bd3 {[%emt 0:01:30]} Nc6 {[%emt 0:01:30]} 5. c3 {[%emt 0:00:00]} e6 {[%emt 0:00:30]} 6. Ne2 {[%emt 0:02:00]} Bd6 {[%emt 0:00:30]} 7. O-O {[%emt 0:04:30]} Nge7 {[%emt 0:01:30]} 8. Nd2 {[%emt 0:02:30]} O-O {[%emt 0:01:30]} 9. Nf3 {[%emt 0:02:30]} Bd7 {[%emt 0:01:30]} 10. Bf4 {[%emt 0:03:30]} Qc7 {[%emt 0:01:30]} 11. g3 {[%emt 0:03:30]} h6 {[%emt 0:04:30]} 12. Bc2 {[%emt 0:09:30]} Rac8 {[%emt 0:08:30]} 13. Qd3 {[%emt 0:04:30]} Nf5 {[%emt 0:01:30]} 14. Bxd6 {[%emt 0:03:30]} Qxd6 {[%emt 0:03:30]} 15. g4 {[%emt 0:01:30]} Rfe8 {[%emt 0:03:30]} 16. gxf5 {[%emt 0:03:30]} exf5 {[%emt 0:00:00]} 17. Rae1 {[%emt 0:05:30]} b5 {[%emt 0:02:00]} 18. Ng3 {[%emt 0:08:30]} Rxe1 {[%emt 0:02:30]} 19. Rxe1 {[%emt 0:00:30]} g6 {[%emt 0:01:30]} 20. Qd2 {[%emt 0:05:30]} f4 {[%emt 0:01:30]} 21. Ne2 {[%emt 0:04:30]} g5 {[%emt 0:03:30]} 22. Ne5 {[%emt 0:05:30]} Nxe5 {[%emt 0:01:30]} 23. dxe5 {[%emt 0:00:00]} Qe6 {[%emt 0:00:30]} 24. Nd4 {[%emt 0:06:00]} Qg4+ {[%emt 0:01:30]} 25. Kh1 {[%emt 0:00:30]} Rc4 {[%emt 0:02:30]} 26. Qd3 {[%emt 0:02:50]} Qh5 {[%emt 0:06:30]} 27. Qh7+ {[%emt 0:10:16]} Kf8 {[%emt 0:00:30]} 28. Qh8+ {[%emt 0:00:30]} Ke7 {[%emt 0:00:30]} 29. Qf6+ {[%emt 0:00:30]} Kf8 {[%emt 0:03:30]} 30. e6 {[%emt 0:01:53]} Rc6 {[%emt 0:02:30]} 31. e7+ {[%emt 0:00:30]} Kg8 {[%emt 0:00:30]} 32. e8=Q+ {[%emt 0:00:30]} Bxe8 {[%emt 0:00:30]} 33. Rxe8# {[%emt 0:00:30]} 1-0

[Event "1st Sivas Buruciye Open 2019"]
[Site "Sivas"]
[Date "2019.08.22"]
[Round "6"]
[White "Ismayilov, Arturan"]
[Black "Babayeva, Nasrin"]
[Result "0-1"]
[ECO "B00"]
[WhiteElo "1561"]
[BlackElo "1547"]
[Annotator "NA"]
[PlyCount "62"]
[EventDate "2019.08.19"]
[EventType "swiss"]
[EventCountry "TUR"]
[SourceTitle "playchess.com"]
[Source "ChessBase"]
[SourceQuality "1"]
[TimeControl "5400+30"]

1. e4 {[%emt 0:00:30]} Nc6 {[%emt 0:00:30]} 2. Nf3 {[%emt 0:00:30]} d6 {[%emt 0:00:30]} 3. d4 {[%emt 0:00:30]} Bg4 {[%emt 0:00:30]} 4. Bb5 {[%emt 0:00:30]} a6 {[%emt 0:00:30]} 5. Bxc6+ {[%emt 0:00:30]} bxc6 {[%emt 0:00:30]} 6. h3 {[%emt 0:00:00]} Bh5 {[%emt 0:00:00]} 7. Nc3 {[%emt 0:00:00]} Nf6 {[%emt 0:00:00]} 8. g4 {[%emt 0:02:30]} Bg6 {[%emt 0:00:00]} 9. Qe2 {[%emt 0:00:30]} h5 {[%emt 0:05:00]} 10. g5 {[%emt 0:00:30]} Nd7 {[%emt 0:00:00]} 11. Nh4 {[%emt 0:01:30]} e6 {[%emt 0:01:00]} 12. f4 {[%emt 0:01:30]} Be7 {[%emt 0:00:00]} 13. Rg1 {[%emt 0:00:00]} O-O {[%emt 0:03:00]} 14. Bd2 {[%emt 0:00:00]} Qc8 {[%emt 0:10:30]} 15. O-O-O {[%emt 0:01:30]} Re8 {[%emt 0:01:30]} 16. Qf3 {[%emt 0:01:30]} d5 {[%emt 0:02:30]} 17. Rdf1 {[%emt 0:06:30]} Nb6 {[%emt 0:04:30]} 18. f5 {[%emt 0:05:30]} dxe4 {[%emt 0:00:00]} 19. Nxe4 {[%emt 0:00:30]} exf5 {[%emt 0:00:00]} 20. Ng3 {[%emt 0:00:30]} Qe6 {[%emt 0:01:30]} 21. b3 {[%emt 0:00:30]} Ba3+ {[%emt 0:01:30]} 22. Kd1 {[%emt 0:01:30]} Rad8 {[%emt 0:01:30]} 23. Re1 {[%emt 0:01:30]} Qd7 {[%emt 0:00:30]} 24. Nhxf5 {[%emt 0:00:30]} Rxe1+ {[%emt 0:00:30]} 25. Rxe1 {[%emt 0:00:30]} h4 {[%emt 0:01:30]} 26. c3 {[%emt 0:09:30]} hxg3 {[%emt 0:00:30]} 27. Nxg3 {[%emt 0:00:00]} c5 {[%emt 0:01:30]} 28. h4 {[%emt 0:00:00]} cxd4 {[%emt 0:03:30]} 29. h5 {[%emt 0:00:30]} dxc3 {[%emt 0:00:30]} 30. Qxc3 {[%emt 0:00:30]} Qg4+ {[%emt 0:00:00]} 31. Re2 {[%emt 0:04:30]} Bb4 {[%emt 0:00:00]} 0-1

[Event "1st Sivas Buruciye Open 2019"]
[Site "Sivas"]
[Date "2019.08.22"]
[Round "6"]
[White "Babayev, Yusif"]
[Black "Ari, Hasan"]
[Result "1-0"]
[ECO "B22"]
[WhiteElo "1179"]
[BlackElo "1028"]
[Annotator "NA"]
[PlyCount "69"]
[EventDate "2019.08.19"]
[EventType "swiss"]
[EventCountry "TUR"]
[SourceTitle "playchess.com"]
[Source "ChessBase"]
[SourceQuality "1"]
[TimeControl "5400+30"]

1. e4 {[%emt 0:00:30]} c5 {[%emt 0:01:30]} 2. c3 {[%emt 0:00:00]} d6 {[%emt 0:00:30]} 3. d4 {[%emt 0:01:00]} cxd4 {[%emt 0:02:30]} 4. cxd4 {[%emt 0:00:00]} Nf6 {[%emt 0:00:00]} 5. Nc3 {[%emt 0:01:00]} g6 {[%emt 0:01:00]} 6. Nf3 {[%emt 0:00:30]} Bg7 {[%emt 0:03:30]} 7. h3 {[%emt 0:00:30]} O-O {[%emt 0:06:30]} 8. Bc4 {[%emt 0:00:30]} Re8 {[%emt 0:06:30]} 9. O-O {[%emt 0:00:00]} e5 {[%emt 0:11:30]} 10. d5 {[%emt 0:01:00]} Nbd7 {[%emt 0:00:30]} 11. Be3 {[%emt 0:02:30]} Nb6 {[%emt 0:06:30]} 12. Bb5 {[%emt 0:00:30]} Bd7 {[%emt 0:01:30]} 13. Bxd7 {[%emt 0:02:30]} Nfxd7 {[%emt 0:00:30]} 14. Qb3 {[%emt 0:02:30]} Rc8 {[%emt 0:06:30]} 15. Nb5 {[%emt 0:04:30]} Nc5 {[%emt 0:02:30]} 16. Bxc5 {[%emt 0:07:30]} Rxc5 {[%emt 0:01:30]} 17. Nxa7 {[%emt 0:04:30]} Bh6 {[%emt 0:17:30]} 18. Nb5 {[%emt 0:01:30]} Nc4 {[%emt 0:01:30]} 19. Rad1 {[%emt 0:08:30]} Na5 {[%emt 0:00:30]} 20. Qd3 {[%emt 0:05:30]} Qb6 {[%emt 0:02:30]} 21. a4 {[%emt 0:03:30]} Rc4 {[%emt 0:04:30]} 22. b3 {[%emt 0:03:30]} Rb4 {[%emt 0:01:49]} 23. Rb1 {[%emt 0:02:30]} Rc8 {[%emt 0:03:02]} 24. Ne1 {[%emt 0:00:30]} Rc1 {[%emt 0:01:38]} 25. Nc2 {[%emt 0:01:30]} Rxf1+ {[%emt 0:00:21]} 26. Kxf1 {[%emt 0:01:30]} Rxb3 {[%emt 0:05:19]} 27. Rxb3 {[%emt 0:00:30]} Nxb3 {[%emt 0:00:30]} 28. Qxb3 {[%emt 0:00:30]} Bf4 {[%emt 0:00:30]} 29. Qc3 {[%emt 0:00:30]} Qa6 {[%emt 0:04:26]} 30. Qb4 {[%emt 0:01:30]} Kg7 {[%emt 0:02:12]} 31. Kg1 {[%emt 0:00:30]} h5 {[%emt 0:00:30]} 32. g3 {[%emt 0:00:30]} Bg5 {[%emt 0:00:30]} 33. Nxd6 {[%emt 0:01:30]} Be7 {[%emt 0:02:15]} 34. Nf5+ {[%emt 0:02:30]} Kf6 {[%emt 0:00:11]} 35. Qxe7# {[%emt 0:00:00]} 1-0